fUSD/lending_fUSD_20250809
["ID","MTS","AMOUNT","RATE_DAILY","PERIOD"]
[378124306,1754740232590,-1564.47869711,0.00020784,2]
[378124308,1754740232599,-650.16662467,0.00021055,2]
[378124310,1754740232610,-600.0,0.00021283,2]
[378124311,1754740232622,-368.21,0.000214,2]
[378124313,1754740232631,-481.67,0.00021444,2]
[378124314,1754740232641,-7837.67640638,0.00021621,2]
[378124315,1754740232658,-1805.65990959,0.00021621,2]
[378124316,1754740232670,-2093.10368403,0.00021621,2]
[378124317,1754740232680,-250.0,0.00021691,2]
[378124318,1754740232690,-170.0,0.00021703,7]
[378124319,1754740232700,-289.92,0.00021712,2]
[378124320,1754740232709,-1000.0,0.00021712,2]
[378124321,1754740232719,-199.63,0.00021712,2]
[378124322,1754740232728,-1564.47869711,0.00021726,2]
[378124323,1754740232738,-654.62,0.00021736,2]
[378124324,1754740232748,-151.83,0.00021743,2]
[378124325,1754740232757,-1855.88844566,0.00021758,2]
[378124326,1754740232767,-23900.0,0.00021759,2]
[378124328,1754740232776,-2751.0,0.00021773,2]
[378124330,1754740232785,-181.59,0.00021781,2]
[378124332,1754740232795,-200.0,0.00021785,2]
[378124333,1754740232804,-216.12,0.00021797,2]
[378124334,1754740232813,-150.0,0.00021816,2]
[378124335,1754740232823,-2803.98,0.0002182,2]
[378124337,1754740232833,-1814.1561759,0.00021822,2]
[378124339,1754740232842,-720.0,0.00021824,2]
[378124341,1754740232851,-1742.44,0.00021836,2]
[378124342,1754740232859,-159.49,0.00021889,2]
[378124344,1754740232870,-6393.36,0.00021905,2]
[378124345,1754740232879,-159.49,0.0002191,2]
[378124347,1754740232888,-5000.0,0.00021918,2]
[378124349,1754740232898,-159.49,0.00021932,2]
[378124351,1754740232907,-159.49,0.00021954,2]
[378124353,1754740232917,-159.49,0.00021976,2]
[378124354,1754740232926,-1207.11406189,0.00021995,2]
[378124355,1754740232936,-417.84720818,0.00021995,2]
[378124356,1754740232945,-160.0,0.00021995,2]
[378124357,1754740232955,-239.84119403,0.00021995,2]
[378124358,1754740232964,-416.03518579,0.00021995,2]
[378124359,1754740232974,-159.49,0.00021998,2]
[378124360,1754740232983,-159.49,0.0002202,2]
[378124361,1754740232994,-159.49,0.00022042,2]
[378124362,1754740233003,-1532.10680809,0.00022043,2]
[378124363,1754740233012,-159.49,0.00022064,2]
[378124364,1754740233022,-159.49,0.00022086,2]
[378124365,1754740233032,-159.49,0.00022107,2]
[378124366,1754740233042,-810.0,0.00022201,2]
[378124367,1754740233052,-956.0,0.00022201,2]
[378124368,1754740233062,-2311.592,0.00022201,2]
[378124369,1754740233071,-564.0,0.00022201,2]
[378124370,1754740233081,-1293.0,0.00022201,2]
[378124371,1754740233090,-959.0,0.00022201,2]
[378124372,1754740233100,-2025.0,0.00022201,2]
[378124373,1754740233109,-597.0,0.00022201,2]
[378124374,1754740233119,-4143.0,0.00022201,2]
[378124375,1754740233128,-20880.07808814,0.00022201,2]
[378124376,1754740233861,-569.92191186,0.00022201,2]
[378124377,1754740233871,-445.1,0.00022378,2]
[378124378,1754740233880,-150.0,0.00022414,2]
[378124379,1754740233889,-8.25038114,0.00022667,2]
[378124380,1754740233907,-428.0,0.00022667,2]
[378124381,1754740233923,-1128.22831597,0.00022667,2]
[378124382,1754740233932,-445.1,0.00022784,2]
[378124383,1754740233942,-151.0,0.00023,7]
[378124384,1754740233952,-176.44318036,0.00023174,2]
[378124385,1754740233963,-305.22681964,0.00023174,2]
[378124386,1754740233973,-445.1,0.00023191,2]
[378124387,1754740233982,-189.0,0.00023335,2]
[378124388,1754740233992,-189.0,0.00023356,2]
[378124389,1754740234002,-160.0,0.00023364,2]
[378124390,1754740234011,-248.71531821,0.00023364,2]
[378124391,1754740234020,-62.18536582,0.00023366,2]
[378124392,1754740234034,-126.81463418,0.00023366,2]
[378124393,1754740234043,-168.0,0.00023442,2]
[378124394,1754740234052,-445.1,0.00023597,2]
[378124395,1754740234062,-1564.47869711,0.00023609,2]
[378124396,1754740234072,-189.0,0.00023753,2]
[378124397,1754740234082,-189.0,0.00023781,2]
[378124398,1754740234092,-189.0,0.00023807,2]
[378124399,1754740234103,-500.0,0.00023835,2]
[378124400,1754740234112,-500.0,0.00023835,2]
[378124401,1754740234122,-181.59,0.00023959,2]
[378124402,1754740234132,-189.0,0.00023963,2]
[378124403,1754740234142,-336.17,0.00023992,2]
[378124404,1754740234152,-359.08,0.00023992,2]
[378124405,1754740234162,-445.1,0.00024004,2]
[378124406,1754740234172,-164.0,0.00024007,2]
[378124407,1754740234182,-168.0,0.00024038,2]
[378124408,1754740234191,-160.0,0.00024054,2]
[378124409,1754740234201,-211.66152043,0.00024054,2]
[378124410,1754740234210,-457.70825493,0.00024054,2]
[378124411,1754740234220,-189.0,0.00024106,2]
[378124412,1754740234229,-419.6625,0.00024109,2]
[378124413,1754740234239,-168.0,0.00024189,2]
[378124414,1754740234248,-189.0,0.00024328,2]
[378124415,1754740234258,-168.0,0.00024389,2]
[378124416,1754740234270,-198.654431,0.00024406,7]
[378124417,1754740234280,-151.0,0.00024406,7]
[378124418,1754740234289,-151.0,0.00024406,7]
[378124419,1754740234299,-283.518302,0.00024406,7]
[378124420,1754740234309,-151.0,0.00024406,7]
[378124421,1754740234318,-445.1,0.0002441,2]
[378124422,1754740234328,-289.92,0.00024425,2]
[378124423,1754740234337,-1000.0,0.00024425,2]
[378124424,1754740234347,-189.0,0.00024437,2]
[378124425,1754740234357,-319.50578676,0.00024448,2]
[378124426,1754740234366,-812.1931233,0.00024457,2]
[378124427,1754740234378,-1687.8068767,0.00024457,2]
[378124428,1754740234387,-1000.0,0.00024457,2]
[378124429,1754740234397,-432.94167613,0.00024457,2]
[378124430,1754740234406,-8520.20784325,0.00024457,2]
[378124431,1754740234415,-800.0,0.00024457,4]
[378124432,1754740234424,-189.0,0.00024484,2]
[378124433,1754740234435,-189.0,0.00024493,2]
[378124434,1754740234445,-168.0,0.00024507,2]
[378124435,1754740234454,-189.0,0.00024512,2]
[378124436,1754740234464,-432.94167611,0.00024517,2]
[378124437,1754740234474,-2451.72013785,0.00024547,2]
[378124438,1754740234483,-1564.47869711,0.00024551,2]
[378124439,1754740234493,-18318.44179258,0.00024557,2]
[378124440,1754740234505,-15662.10574121,0.00024557,2]
[378124441,1754740234516,-150.40776621,0.00024557,2]
[378124442,1754740234525,-11964.81293905,0.00024557,2]
[378124443,1754740234537,-1481.57319288,0.00024557,2]
[378124446,1754740238126,-685.50764417,0.00019947,3]
[378124447,1754740238181,-202.49235583,0.00019947,3]
[378124448,1754740238190,-1045.00764427,0.00022187,3]
[378124449,1754740238241,-730.99235573,0.00022187,3]
[378124450,1754740238262,-128.06026151,0.00022701,3]
[378124451,1754740238297,-330.47581602,0.00022701,3]
[378124452,1754740238351,-888.0,0.00020447,3]
[378124453,1754740238360,-429.46392247,0.00022701,3]
[378124454,1754740238370,-23122.25169032,0.00024557,2]
[378124455,1754740238403,-589.6269,0.00022687,3]
[378124456,1754740238415,-1186.3731,0.00022687,3]
[378124457,1754740238424,-1170.8437927,0.00024557,2]
[378124458,1754740238435,-1168.8,0.00024557,2]
[378124461,1754740238589,-151207.67768505,0.00024557,2]
[378124463,1754740238598,-1500.0,0.00024557,2]
[378124465,1754740238608,-1000.0,0.00024557,2]
[378124467,1754740238617,-10000.0,0.00024557,2]
[378124469,1754740238626,-5000.0,0.00024557,2]
[378124471,1754740238636,-165.84205455,0.00024557,2]
[378124473,1754740238645,-388.83019004,0.00024559,2]
[378124474,1754740238655,-500.0,0.00024559,2]
[378124477,1754740238665,-500.0,0.00024559,2]
[378124478,1754740238675,-500.0,0.00024559,2]
[378124480,1754740238685,-500.0,0.00024559,2]
[378124482,1754740238694,-500.0,0.00024559,2]
[378124485,1754740238705,-368.30835691,0.00024559,2]
[378124486,1754740238713,-500.0,0.00024559,2]
[378124488,1754740238723,-500.0,0.00024559,2]
[378124490,1754740238732,-432.94167611,0.00024577,2]
[378124492,1754740238742,-189.0,0.00024621,2]
[378124494,1754740238751,-432.94167611,0.00024636,2]
[378124496,1754740238761,-304.08,0.00024657,2]
[378124498,1754740238770,-303.94,0.00024657,2]
[378124500,1754740238779,-198.654431,0.00024657,7]
[378124502,1754740238788,-198.654431,0.00024657,7]
[378124504,1754740238797,-198.654431,0.00024657,7]
[378124506,1754740238808,-151.0,0.00024657,7]
[378124508,1754740238817,-151.0,0.00024657,7]
[378124510,1754740238826,-151.0,0.00024657,7]
[378124512,1754740238835,-151.0,0.00024657,7]
[378124514,1754740238845,-151.0,0.00024657,7]
[378124516,1754740238855,-151.0,0.00024657,7]
[378124518,1754740238865,-151.0,0.00024657,7]
[378124519,1754740238875,-227.587266,0.00024657,7]
[378124520,1754740238884,-151.0,0.00024657,7]
[378124521,1754740238894,-400.33129766,0.00024657,2]
[378124522,1754740238904,-400.0,0.00024657,2]
[378124523,1754740238913,-400.0,0.00024657,2]
[378124524,1754740238922,-400.0,0.00024657,2]
[378124525,1754740238931,-400.0,0.00024657,2]
[378124526,1754740238940,-402.27341994,0.00024657,2]
[378124527,1754740238949,-400.0,0.00024657,2]
[378124528,1754740238958,-400.0,0.00024657,2]
[378124529,1754740238967,-400.0,0.00024657,2]
[378124530,1754740238976,-401.55403489,0.00024657,2]
[378124531,1754740238985,-400.0,0.00024657,2]
[378124532,1754740238993,-400.0,0.00024657,2]
[378124533,1754740239003,-400.0,0.00024657,2]
[378124534,1754740239011,-402.8752258,0.00024657,2]
[378124535,1754740239020,-400.0,0.00024657,2]
[378124536,1754740239030,-400.0,0.00024657,2]
[378124537,1754740239039,-400.0,0.00024657,2]
[378124539,1754740239048,-400.0,0.00024657,2]
[378124541,1754740239057,-401.60135627,0.00024657,2]
[378124543,1754740239067,-400.0,0.00024657,2]
[378124545,1754740239076,-400.0,0.00024657,2]
[378124546,1754740239085,-290.64289944,0.00024657,2]
[378124549,1754740239095,-400.0,0.00024657,2]
[378124551,1754740239104,-402.08089253,0.00024657,2]
[378124553,1754740239114,-400.0,0.00024657,2]
[378124555,1754740239124,-400.0,0.00024657,2]
[378124556,1754740239134,-400.0,0.00024657,2]
[378124558,1754740239142,-400.0,0.00024657,2]
[378124560,1754740239152,-400.0,0.00024657,2]
[378124562,1754740239162,-400.0,0.00024657,2]
[378124564,1754740239171,-261.20334324,0.00024657,2]
[378124566,1754740239180,-403.85020278,0.00024657,2]
[378124568,1754740239189,-401.41697177,0.00024657,2]
[378124570,1754740239199,-400.0,0.00024657,2]
[378124572,1754740239208,-400.0,0.00024657,2]
[378124574,1754740239217,-401.81051383,0.00024657,2]
[378124576,1754740239226,-400.0,0.00024657,2]
[378124578,1754740239236,-400.0,0.00024657,2]
[378124580,1754740239245,-400.0,0.00024657,2]
[378124582,1754740239255,-400.0,0.00024657,2]
[378124584,1754740239264,-400.0,0.00024657,2]
[378124586,1754740239275,-400.0,0.00024657,2]
[378124588,1754740239284,-508.08,0.00024657,2]
[378124590,1754740239293,-400.0,0.00024657,2]
[378124616,1754740239533,-400.0,0.00024657,2]
[378124618,1754740239543,-400.0,0.00024657,2]
[378124620,1754740239551,-400.0,0.00024657,2]
[378124622,1754740239561,-400.0,0.00024657,2]
[378124624,1754740239570,-400.0,0.00024657,2]
[378124626,1754740239579,-194.28,0.00024657,2]
[378124628,1754740239588,-400.0,0.00024657,2]
[378124630,1754740239598,-400.0,0.00024657,2]
[378124632,1754740239607,-400.0,0.00024657,2]
[378124634,1754740239616,-400.0,0.00024657,2]
[378124636,1754740239625,-400.0,0.00024657,2]
[378124638,1754740239634,-400.0,0.00024657,2]
[378124640,1754740239643,-400.0,0.00024657,2]
[378124642,1754740239653,-400.0,0.00024657,2]
[378124644,1754740239661,-400.0,0.00024657,2]
[378124646,1754740239671,-400.0,0.00024657,2]
[378124648,1754740239681,-400.0,0.00024657,2]
[378124650,1754740239690,-525.81136141,0.00024657,2]
[378124652,1754740239699,-400.0,0.00024657,2]
[378124654,1754740239708,-400.0,0.00024657,2]
[378124655,1754740239718,-400.0,0.00024657,2]
[378124657,1754740239727,-400.0,0.00024657,2]
[378124660,1754740239737,-400.0,0.00024657,2]
[378124662,1754740239746,-572.58,0.00024657,2]
[378124664,1754740239754,-400.0,0.00024657,2]
[378124665,1754740239763,-400.0,0.00024657,2]
[378124668,1754740239774,-402.74377224,0.00024657,2]
[378124670,1754740239783,-400.0,0.00024657,2]
[378124671,1754740239792,-400.0,0.00024657,2]
[378124673,1754740239801,-400.0,0.00024657,2]
[378124675,1754740239810,-400.0,0.00024657,2]
[378124677,1754740239820,-428.08749102,0.00024657,2]
[378124679,1754740239829,-400.0,0.00024657,2]
[378124681,1754740239839,-401.14037082,0.00024657,2]
[378124683,1754740239848,-401.99978683,0.00024657,2]
[378124685,1754740239857,-400.0,0.00024657,2]
[378124687,1754740239866,-545.54558646,0.00024657,2]
[378124689,1754740239877,-400.0,0.00024657,2]
[378124691,1754740239886,-400.0,0.00024657,2]
[378124693,1754740239896,-400.0,0.00024657,2]
[378124695,1754740239906,-400.0,0.00024657,2]
[378124698,1754740239915,-400.0,0.00024657,2]
[378124700,1754740239925,-400.0,0.00024657,2]
[378124702,1754740239935,-401.59,0.00024657,2]
[378124704,1754740239944,-400.0,0.00024657,2]
[378124706,1754740239954,-400.0,0.00024657,2]
[378124708,1754740239963,-271.59268742,0.00024657,2]
[378124710,1754740239972,-400.0,0.00024657,2]
[378124712,1754740239981,-400.89,0.00024657,2]
[378124715,1754740239990,-400.0,0.00024657,2]
[378124717,1754740239999,-400.0,0.00024657,2]
[378124719,1754740240008,-400.0,0.00024657,2]
[378124721,1754740240017,-400.0,0.00024657,2]
[378124723,1754740240027,-400.0,0.00024657,2]
[378124725,1754740240036,-400.0,0.00024657,2]
[378124727,1754740240046,-400.0,0.00024657,2]
[378124729,1754740240056,-400.0,0.00024657,2]
[378124731,1754740240066,-400.0,0.00024657,2]
[378124734,1754740240076,-400.0,0.00024657,2]
[378124735,1754740240086,-444.66,0.00024657,2]
[378124737,1754740240096,-400.0,0.00024657,2]
[378124740,1754740240107,-400.0,0.00024657,2]
[378124741,1754740240116,-400.0,0.00024657,2]
[378124745,1754740240127,-400.0,0.00024657,2]
[378124747,1754740240136,-400.0,0.00024657,2]
[378124749,1754740240146,-400.0,0.00024657,2]
[378124752,1754740240155,-187.9,0.00024657,2]
[378124754,1754740240165,-400.0,0.00024657,2]
[378124756,1754740240174,-400.0,0.00024657,2]
[378124758,1754740240183,-400.0,0.00024657,2]
[378124760,1754740240192,-400.0,0.00024657,2]
[378124762,1754740240201,-400.0,0.00024657,2]
[378124764,1754740240211,-400.0,0.00024657,2]
[378124766,1754740240221,-513.19780385,0.00024657,2]
[378124768,1754740240230,-400.0,0.00024657,2]
[378124770,1754740240239,-400.0,0.00024657,2]
[378124771,1754740240248,-460.68567242,0.00024657,2]
[378124773,1754740240257,-400.0,0.00024657,2]
[378124776,1754740240267,-400.0,0.00024657,2]
[378124778,1754740240278,-400.0,0.00024657,2]
[378124779,1754740240287,-400.0,0.00024657,2]
[378124782,1754740240297,-404.28511646,0.00024657,2]
[378124784,1754740240307,-400.0,0.00024657,2]
[378124786,1754740240318,-400.0,0.00024657,2]
[378124788,1754740240328,-400.0,0.00024657,2]
[378124790,1754740240338,-327.61756416,0.00024657,2]
[378124792,1754740240352,-400.0,0.00024657,2]
[378124794,1754740240361,-402.86841318,0.00024657,2]
[378124796,1754740240370,-400.0,0.00024657,2]
[378124798,1754740240380,-400.0,0.00024657,2]
[378124800,1754740240389,-400.0,0.00024657,2]
[378124802,1754740240398,-400.0,0.00024657,2]
[378124804,1754740240408,-400.0,0.00024657,2]
[378124805,1754740240417,-400.0,0.00024657,2]
[378124807,1754740240426,-400.0,0.00024657,2]
[378124810,1754740240436,-400.0,0.00024657,2]
[378124812,1754740240445,-400.0,0.00024657,2]
[378124814,1754740240455,-400.0,0.00024657,2]
[378124815,1754740240464,-400.0,0.00024657,2]
[378124817,1754740240473,-400.0,0.00024657,2]
[378124819,1754740240482,-400.0,0.00024657,2]
[378124822,1754740240491,-405.19655091,0.00024657,2]
[378124824,1754740240501,-400.0,0.00024657,2]
[378124826,1754740240510,-440.43403714,0.00024657,2]
[378124828,1754740240520,-400.0,0.00024657,2]
[378124830,1754740240530,-400.0,0.00024657,2]
[378124832,1754740240539,-400.0,0.00024657,2]
[378124834,1754740240548,-400.0,0.00024657,2]
[378124835,1754740240557,-400.0,0.00024657,2]
[378124837,1754740240567,-400.0,0.00024657,2]
[378124839,1754740240576,-400.0,0.00024657,2]
[378124842,1754740240585,-400.0,0.00024657,2]
[378124843,1754740240595,-400.0,0.00024657,2]
[378124846,1754740240604,-400.0,0.00024657,2]
[378124848,1754740240613,-400.0,0.00024657,2]
[378124850,1754740240623,-400.0,0.00024657,2]
[378124851,1754740240632,-393.58069829,0.00024657,2]
[378124854,1754740240642,-400.0,0.00024657,2]
[378124856,1754740240651,-400.0,0.00024657,2]
[378124858,1754740240661,-152.78879,0.00024657,2]
[378124860,1754740240670,-400.0,0.00024657,2]
[378124862,1754740240679,-1127.276391,0.00024657,2]
[378124864,1754740240689,-400.0,0.00024657,2]
[378124866,1754740240697,-400.0,0.00024657,2]
[378124867,1754740240706,-400.0,0.00024657,2]
[378124870,1754740240716,-400.0,0.00024657,2]
[378124872,1754740240725,-506.61586848,0.00024657,2]
[378124874,1754740240735,-400.0,0.00024657,2]
[378124876,1754740240744,-400.0,0.00024657,2]
[378124878,1754740240754,-400.0,0.00024657,2]
[378124880,1754740240763,-400.0,0.00024657,2]
[378124882,1754740240772,-400.0,0.00024657,2]
[378124884,1754740240781,-400.0,0.00024657,2]
[378124886,1754740240791,-400.0,0.00024657,2]
[378124888,1754740240800,-400.0,0.00024657,2]
[378124889,1754740240809,-400.0,0.00024657,2]
[378124891,1754740240818,-400.0,0.00024657,2]
[378124893,1754740240828,-400.0,0.00024657,2]
[378124895,1754740240838,-602.24,0.00024657,2]
[378124897,1754740240847,-400.0,0.00024657,2]
[378124899,1754740240856,-400.0,0.00024657,2]
[378124901,1754740240864,-400.0,0.00024657,2]
[378124903,1754740240873,-400.93196129,0.00024657,2]
[378124905,1754740240882,-2304.476226,0.00024657,2]
[378124907,1754740240891,-400.0,0.00024657,2]
[378124909,1754740240900,-523.49,0.00024657,2]
[378124911,1754740240909,-400.0,0.00024657,2]
[378124913,1754740240918,-400.0,0.00024657,2]
[378124915,1754740240930,-400.0,0.00024657,2]
[378124917,1754740240939,-402.19933065,0.00024657,2]
[378124919,1754740240948,-2164.833233,0.00024657,2]
[378124921,1754740240958,-400.0,0.00024657,2]
[378124923,1754740240968,-400.0,0.00024657,2]
[378124925,1754740240977,-467.9,0.00024657,2]
[378124927,1754740240986,-400.0,0.00024657,2]
[378124929,1754740240995,-400.0,0.00024657,2]
[378124931,1754740241005,-400.0,0.00024657,2]
[378124933,1754740241015,-400.0,0.00024657,2]
[378124935,1754740241024,-400.0,0.00024657,2]
[378124937,1754740241034,-174.162443,0.00024657,2]
[378124940,1754740241043,-400.0,0.00024657,2]
[378124942,1754740241055,-400.0,0.00024657,2]
[378124944,1754740241064,-400.0,0.00024657,2]
[378124946,1754740241073,-300.91643978,0.00024657,2]
[378124948,1754740241083,-400.0,0.00024657,2]
[378124950,1754740241091,-400.0,0.00024657,2]
[378124952,1754740241100,-414.47,0.00024657,2]
[378124954,1754740241110,-400.0,0.00024657,2]
[378124956,1754740241119,-400.0,0.00024657,2]
[378124958,1754740241128,-400.0,0.00024657,2]
[378124960,1754740241138,-400.0,0.00024657,2]
[378124962,1754740241147,-400.0,0.00024657,2]
[378124963,1754740241157,-400.0,0.00024657,2]
[378124966,1754740241166,-400.0,0.00024657,2]
[378124967,1754740241176,-400.0,0.00024657,2]
[378124969,1754740241185,-400.0,0.00024657,2]
[378124971,1754740241194,-400.0,0.00024657,2]
[378124973,1754740241204,-400.0,0.00024657,2]
[378124975,1754740241213,-402.42186666,0.00024657,2]
[378124978,1754740241222,-400.0,0.00024657,2]
[378124980,1754740241232,-400.0,0.00024657,2]
[378124981,1754740241241,-400.0,0.00024657,2]
[378124983,1754740241250,-565.79,0.00024657,2]
[378124985,1754740241260,-400.0,0.00024657,2]
[378124988,1754740241271,-400.0,0.00024657,2]
[378124990,1754740241282,-400.0,0.00024657,2]
[378124992,1754740241292,-400.0,0.00024657,2]
[378124994,1754740241301,-403.92169046,0.00024657,2]
[378124996,1754740241311,-400.0,0.00024657,2]
[378124998,1754740241320,-400.0,0.00024657,2]
[378125000,1754740241329,-160.89538238,0.00024657,2]
[378125002,1754740241338,-400.0,0.00024657,2]
[378125004,1754740241349,-400.0,0.00024657,2]
[378125006,1754740241358,-400.0,0.00024657,2]
[378125008,1754740241367,-400.0,0.00024657,2]
[378125010,1754740241376,-624.24,0.00024657,2]
[378125012,1754740241385,-400.0,0.00024657,2]
[378125014,1754740241394,-400.0,0.00024657,2]
[378125016,1754740241403,-539.27865825,0.00024657,2]
[378125018,1754740241412,-400.0,0.00024657,2]
[378125020,1754740241421,-400.0,0.00024657,2]
[378125022,1754740241431,-400.0,0.00024657,2]
[378125024,1754740241440,-695.28,0.00024657,2]
[378125025,1754740241449,-400.0,0.00024657,2]
[378125027,1754740241458,-400.0,0.00024657,2]
[378125029,1754740241467,-400.0,0.00024657,2]
[378125032,1754740241477,-400.0,0.00024657,2]
[378125034,1754740241486,-400.0,0.00024657,2]
[378125036,1754740241495,-173.44599883,0.00024657,2]
[378125037,1754740241505,-400.0,0.00024657,2]
[378125039,1754740241514,-400.0,0.00024657,2]
[378125041,1754740241524,-400.0,0.00024657,2]
[378125043,1754740241533,-400.0,0.00024657,2]
[378125046,1754740241543,-510.89,0.00024657,2]
[378125048,1754740241552,-400.0,0.00024657,2]
[378125050,1754740241562,-400.0,0.00024657,2]
[378125052,1754740241571,-686.99,0.00024657,2]
[378125053,1754740241580,-400.0,0.00024657,2]
[378125055,1754740241589,-400.0,0.00024657,2]
[378125057,1754740241598,-400.0,0.00024657,2]
[378125059,1754740241607,-228.92196551,0.00024657,2]
[378125061,1754740241617,-400.0,0.00024657,2]
[378125063,1754740241626,-400.0,0.00024657,2]
[378125065,1754740241635,-400.0,0.00024657,2]
[378125068,1754740241645,-400.0,0.00024657,2]
[378125070,1754740241656,-528.13,0.00024657,2]
[378125071,1754740241665,-400.0,0.00024657,2]
[378125074,1754740241674,-400.0,0.00024657,2]
[378125075,1754740241683,-400.0,0.00024657,2]
[378125078,1754740241693,-672.5,0.00024657,2]
[378125080,1754740241702,-400.0,0.00024657,2]
[378125082,1754740241711,-400.0,0.00024657,2]
[378125084,1754740241720,-400.0,0.00024657,2]
[378125085,1754740241730,-400.0,0.00024657,2]
[378125087,1754740241739,-400.0,0.00024657,2]
[378125089,1754740241748,-400.0,0.00024657,2]
[378125092,1754740241758,-400.0,0.00024657,2]
[378125093,1754740241767,-402.93608351,0.00024657,2]
[378125095,1754740241776,-524.82,0.00024657,2]
[378125098,1754740241787,-501.52,0.00024657,2]
[378125100,1754740241796,-400.0,0.00024657,2]
[378125102,1754740241805,-400.0,0.00024657,2]
[378125104,1754740241815,-412.43,0.00024657,2]
[378125106,1754740241824,-400.0,0.00024657,2]
[378125108,1754740241833,-400.0,0.00024657,2]
[378125110,1754740241843,-400.0,0.00024657,2]
[378125112,1754740241852,-400.0,0.00024657,2]
[378125113,1754740241860,-400.0,0.00024657,2]
[378125115,1754740241870,-400.0,0.00024657,2]
[378125118,1754740241879,-400.0,0.00024657,2]
[378125120,1754740241889,-400.0,0.00024657,2]
[378125122,1754740241898,-400.0,0.00024657,2]
[378125124,1754740241907,-300.00013473,0.00024657,2]
[378125126,1754740241916,-400.0,0.00024657,2]
[378125127,1754740241925,-466.20207407,0.00024657,2]
[378125130,1754740241935,-400.0,0.00024657,2]
[378125131,1754740241944,-400.0,0.00024657,2]
[378125134,1754740241954,-400.0,0.00024657,2]
[378125135,1754740241963,-400.0,0.00024657,2]
[378125138,1754740241973,-400.0,0.00024657,2]
[378125140,1754740241983,-415.49,0.00024657,2]
[378125141,1754740241992,-400.0,0.00024657,2]
[378125143,1754740242001,-400.0,0.00024657,2]
[378125145,1754740242011,-400.0,0.00024657,2]
[378125147,1754740242021,-400.0,0.00024657,2]
[378125149,1754740242031,-400.0,0.00024657,2]
[378125152,1754740242041,-500.23,0.00024657,2]
[378125154,1754740242053,-400.0,0.00024657,2]
[378125156,1754740242063,-400.0,0.00024657,2]
[378125158,1754740242073,-400.0,0.00024657,2]
[378125160,1754740242082,-439.13,0.00024657,2]
[378125162,1754740242092,-400.0,0.00024657,2]
[378125164,1754740242102,-400.0,0.00024657,2]
[378125166,1754740242111,-400.0,0.00024657,2]
[378125168,1754740242120,-400.0,0.00024657,2]
[378125170,1754740242129,-442.3,0.00024657,2]
[378125172,1754740242139,-400.0,0.00024657,2]
[378125174,1754740242149,-425.11,0.00024657,2]
[378125176,1754740242159,-1000.0,0.00024657,2]
[378125177,1754740242168,-400.0,0.00024657,2]
[378125178,1754740242177,-400.0,0.00024657,2]
[378125179,1754740242188,-400.0,0.00024657,2]
[378125180,1754740242197,-400.0,0.00024657,2]
[378125181,1754740242206,-400.0,0.00024657,2]
[378125182,1754740242215,-445.84548456,0.00024657,2]
[378125183,1754740242224,-400.0,0.00024657,2]
[378125184,1754740242234,-400.0,0.00024657,2]